[Event "67th Mexican-ch Open 2022"]
[Site "Chihuahua"]
[Date "2022.04.15"]
[Round "5.6"]
[White "Obregon Rivero, Juan Carlos"]
[Black "Morales Garcia, Sergio Joshafatt"]
[Result "1-0"]
[ECO "B49"]
[WhiteElo "2536"]
[BlackElo "2246"]
[Annotator "TA"]
[PlyCount "78"]
[EventDate "2022.04.12"]
[EventType "swiss"]
[EventCountry "MEX"]
[SourceTitle "playchess.com"]
[Source "ChessBase"]
[SourceQuality "1"]
[TimeControl "5400+30"]

{[%evp 23,78,0,47,52,56,22,22,10,17,0,0,0,0,-3,0,-59,-63,-66,-69,-75,-75,-69,-54,-77,-75,-69,-66,-81,-20,-75,-57,-53,154,152,181,177,293,206,300,302,314,208,201,119,113,66,425,425,1104,1095,979,998,2717,2210,29993,-1308,-1268]} 1. e4 {[%emt 0:01:24]} c5 {[%emt 1:31:00]} 2. Nf3 {[%emt 0:00:10]} e6 {[%emt 0:00:30]} 3. d4 {[%emt 0:01:58]} cxd4 4. Nxd4 {[%emt 0:00:06]} Nc6 {[%emt 0:01:00]} 5. Nc3 {[%emt 1:29:22]} Qc7 {[%emt 0:00:00]} 6. Be3 {[%emt 0:00:00]} a6 {[%emt 0:00:00]} 7. Be2 {[%emt 0:00:00]} Nf6 {[%emt 0:00:00]} 8. O-O {[%emt 0:00:00]} Bb4 {[%emt 0:00:00]} 9. Na4 {[%emt 0:00:00]} O-O {[%emt 0:00:00]} 10. Nxc6 {[%emt 0:00:00]} bxc6 {[%emt 0:00:00]} 11. Nb6 {[%emt 0:00:00] 11.f4 is vanishing.} Rb8 {[%emt 0:00:00]} 12. Nxc8 {[%emt 0:00:00]} Qxc8 {[%emt 0:00:00]} (12... Rfxc8 $11 {deserves consideration.} 13. Bxa6 Re8) 13. Bf4 $14 {[%emt 0:00:00] This bishop pair is nice. B49: Sicilian: Taimanov: 5 Nc3 Qc7 6 Be3 a6 7 Be2.} Rb6 {[%emt 0:00:00]} 14. e5 {[%emt 0:00:00]} Nd5 {[%emt 0:00:00] [#]} 15. Bc1 $146 {[%emt 0:00:00] With the idea c4. The position is equal.} (15. Bg3 $5 {[%cal Rc2c4]}) ({Predecessor:} 15. Bg3 Bc5 16. c4 Ne7 17. b3 Nf5 18. Bd3 Bd4 19. Bxf5 Bxa1 20. Bc2 Bb2 21. Qh5 {1-0 (40) Lopez Andujar Ocana,A (2051)-Marin Aso,J (1881) Madrid 2016}) 15... Bc5 {[%emt 0:00:00]} 16. a3 {[%emt 0:00:00]} a5 {[%emt 0:00:00]} 17. Bd3 {[%emt 0:00:00]} Qc7 {[%emt 0:00:00]} 18. Qe1 {[%emt 0:00:00]} Rbb8 {[%emt 0:00:00]} 19. Rb1 {[%emt 0:00:00] [#]} (19. Bd2 $11) 19... Bxa3 $1 $15 {[%emt 0:00:00]} 20. Qe4 {[%emt 0:00:00][%csl Gd3][%cal Re4h7]} (20. c3 Be7) 20... f5 {[%emt 0:00:00]} 21. exf6 {[%emt 0:00:00]} Nxf6 {[%emt 0:00:00]} 22. Qh4 {[%emt 0:00:00]} Bc5 {[%emt 0:00:00]} 23. Bd2 {[%emt 0:00:00]} d5 {[%emt 0:00:00]} 24. Ra1 {[%emt 0:00:00]} Bb4 {[%emt 0:00:00]} 25. Bg5 {[%emt 0:00:00]} e5 {[%emt 0:00:00]} (25... h6 $17 26. Be3 Nd7) 26. Bf5 {[%emt 0:00:00]} (26. Bxf6 $11 Rxf6 27. Qxh7+ Kf7 28. Qh5+ Ke7 29. f3) 26... Bc5 {[%emt 0:00:00]} (26... h6 $5 {[%cal Rh6g5]} 27. Be3 d4 $15) 27. Bxf6 {[%emt 0:00:00]} gxf6 $2 {[%emt 0:00:00] [#]} (27... Rxf6 $15 28. Qxh7+ Kf7 29. Qh5+ Ke7) 28. Rxa5 $1 $16 {[%emt 0:00:00][%mdl 512]} Bd4 {[%emt 0:03:07]} (28... Rb5 29. Rxb5) 29. Ra3 $1 {[%emt 0:00:00]} ({But not} 29. c3 $6 Bb6 30. Ra6 Kh8 $16) 29... e4 {[%emt 0:04:42]} (29... Rxb2 $142 30. Qg4+ Kf7) 30. Rh3 {[%emt 0:00:00]} Rb7 {[%emt 0:02:02]} (30... Rf7 $142 31. Be6 Kh8) 31. Qg4+ $18 {[%emt 0:00:00]} Qg7 {[%emt 0:00:50]} 32. Bxh7+ {[%emt 0:00:00]} Kf7 {[%emt 0:00:04]} 33. Qf5 {[%emt 0:00:00]} ({White should try} 33. Qh5+ $18 Ke7 34. Bxe4 $1 {[%mdl 512]} dxe4 35. Qf5) 33... Ke7 $16 {[%emt 0:01:28]} 34. Rg3 {[%emt 0:00:00] Chess con chili.} ({White should play} 34. Rd1 $16 Rxb2 35. Bg6 Rxc2 36. Rh7 Qxh7 37. Bxh7 Rxf2 38. Qxf2 (38. Rxd4 Rxf5 39. Bxf5 Kd6 $14) 38... Bxf2+ 39. Kxf2) 34... Qh6 {[%emt 0:00:20][%mdl 8192]} (34... Qf7 $14) 35. Bg8 $18 {[%emt 0:00:00] Hoping for Qe6+.} Kd6 {[%emt 0:01:50]} (35... Rd8 $142 36. c3 Be5) 36. Qe6+ {[%emt 0:00:00]} Kc5 {[%emt 0:00:57]} 37. b4+ {[%emt 0:02:04]} Kb5 {[%emt 0:00:36]} 38. c4+ Kxb4 {[%emt 0:00:23]} 39. Qxd5 $4 {[%mdl 8192]} cxd5 {[%emt 0:00:39][%mdl 32768] What a bad dream for White.  Weighted Error Value: White=0.53/Black=0.77. Loss on time!?} 1-0

[Event "67th Mexican-ch Open 2022"]
[Site "Chihuahua"]
[Date "2022.04.15"]
[Round "5.7"]
[White "Quesada Perez, Luis Ernesto"]
[Black "Hernandez Guerrero, Eduardo"]
[Result "1-0"]
[ECO "A65"]
[WhiteElo "2517"]
[BlackElo "2232"]
[Annotator "TA"]
[PlyCount "51"]
[EventDate "2022.04.12"]
[EventType "swiss"]
[EventCountry "MEX"]
[SourceTitle "playchess.com"]
[Source "ChessBase"]
[SourceQuality "1"]
[TimeControl "5400+30"]

{[%evp 20,51,35,39,62,67,83,69,115,109,134,129,168,125,152,138,147,58,216,199,189,87,98,98,80,76,109,109,110,119,330,57,1047,970]} 1. d4 {[%emt 0:00:23]} Nf6 {[%emt 0:00:13]} 2. c4 {[%emt 0:00:07]} c5 {[%emt 0:02:00]} 3. d5 {[%emt 0:00:29]} g6 {[%emt 0:01:03]} 4. Nc3 {[%emt 0:00:08]} Bg7 {[%emt 0:00:06]} 5. e4 {[%emt 0:01:38]} d6 {[%emt 0:00:06]} 6. f3 {[%emt 0:05:23]} O-O {[%emt 0:05:02]} 7. Nge2 {[%emt 0:00:12]} e6 {[%emt 0:01:14]} 8. Ng3 {[%emt 0:00:06]} exd5 {[%emt 0:00:05]} 9. cxd5 {[%emt 0:00:04]} a6 {[%emt 0:01:02]} 10. a4 {[%emt 0:00:07]} Nbd7 {[%emt 0:00:24]} 11. Be2 {[%emt 0:00:07]} Qc7 {[%emt 0:09:24] A65: Modern Benoni: 6 e4.} 12. O-O {[%emt 0:00:50]} Rb8 {[%emt 0:01:12]} 13. Be3 {[%emt 0:00:16]} c4 {[%emt 0:00:10]} (13... Re8 $14 {deserves consideration.}) 14. Qd2 $16 {[%emt 0:08:23]} Nc5 {[%emt 0:03:16]} 15. Bxc4 {[%emt 0:00:36]} Ncxe4 {[%emt 0:00:25]} 16. Ngxe4 {[%emt 0:13:38] [#]} Qxc4 $146 {[%emt 0:03:54]} ({Predecessor:} 16... Nxe4 17. Nxe4 Qxc4 18. Nxd6 Qh4 19. g3 Qf6 20. Nxc8 Rbxc8 21. d6 Rfd8 22. Rad1 Rd7 {0-1 (29) Sachdev,T (2392)-Cori Tello,D (2388) Chess.com INT 2021}) 17. Nxd6 {[%emt 0:00:56] Pair of Knights!} Qb4 {[%emt 0:01:52] [#]} 18. Nde4 {[%emt 0:00:10] &Bianco is much more active. The black rooks are badly placed.} (18. Rf2 $1 $16) 18... Bf5 $2 {[%emt 0:02:57]} (18... Nxe4 $1 $14 19. fxe4 Bd7) 19. Nxf6+ $1 $18 {[%emt 0:01:05]} Bxf6 {[%emt 0:00:07] [#]} 20. Ne4 {[%emt 0:04:00]} (20. g4 $1 $18 {[%cal Rg4f5] and White stays clearly on top.} Rfe8 21. Rad1 (21. gxf5 Rxe3 22. Rad1 Qc5 $14)) 20... Qxb2 $16 {[%emt 0:04:43]} 21. Nxf6+ {[%emt 0:00:23]} Qxf6 {[%emt 0:00:07]} 22. d6 {[%emt 0:03:19] Threatens to win with Bg5.} Rbc8 {[%emt 0:13:51]} 23. Rac1 {[%emt 0:24:37] Against Rc2} Rfd8 {[%emt 0:01:18]} 24. Rxc8 {[%emt 0:00:07]} Rxc8 $2 {[%emt 0:00:06]} (24... Bxc8 $16 25. Rd1 Re8) 25. Re1 $2 {[%emt 0:01:09]} ({Stronger than} 25. d7 Rd8 $11) (25. Bg5 $18 Rc2 {[#]} 26. Qxc2 $3 {[%mdl 512]} Qxg5 27. Qc1) 25... Rd8 $2 {[%emt 0:29:25][%mdl 8192]} (25... Bd7 $14) 26. Bg5 {[%emt 0:01:38] Weighted Error Value: White=0.33/Black=0.58} 1-0

[Event "67th Mexican-ch Open 2022"]
[Site "Chihuahua"]
[Date "2022.04.15"]
[Round "5.8"]
[White "Ibarra Chami, Luis Fernando"]
[Black "Flores Guerrero, Jesus Aldair"]
[Result "1-0"]
[ECO "A84"]
[WhiteElo "2451"]
[BlackElo "2251"]
[Annotator "TA"]
[PlyCount "64"]
[EventDate "2022.04.12"]
[EventType "swiss"]
[EventCountry "MEX"]
[SourceTitle "playchess.com"]
[Source "ChessBase"]
[SourceQuality "1"]
[TimeControl "5400+30"]

{[%evp 17,64,56,40,47,102,95,181,192,188,173,175,192,177,154,160,140,140,134,149,150,144,144,144,142,150,136,152,146,265,255,254,254,435,432,447,446,443,438,538,528,551,544,528,527,600,591,2410,2252,29993]} 1. c4 {[%emt 0:02:20]} f5 {[%emt 0:07:03]} 2. Nf3 {[%emt 0:01:29]} Nf6 {[%emt 0:00:08]} 3. g3 {[%emt 0:00:20]} b6 {[%emt 0:01:56]} 4. Bg2 {[%emt 0:04:46]} Bb7 {[%emt 0:00:11]} 5. O-O {[%emt 0:00:28]} e6 {[%emt 0:00:31]} 6. d4 {[%emt 0:01:40][%cal Bd2d4,Bd4d5][%mdl 32]} Be7 {[%emt 0:03:05]} 7. d5 {[%emt 0:02:10]} Qc8 {[%emt 0:14:50]} 8. Nc3 {[%emt 0:06:41]} O-O {[%emt 0:04:16]} 9. a3 {[%emt 0:13:18]} a5 {[%emt 0:16:36]} 10. Nd4 {[%emt 0:04:44] [#] A84: Dutch Defence: 2 c4 Miscellaneous.} c6 $146 {[%emt 0:13:31]} (10... Na6 $14) ({Predecessor:} 10... c5 11. Ndb5 Na6 12. Na4 Bd8 13. Nd6 Qb8 14. Nxb7 Qxb7 15. dxe6 Ne4 16. Nc3 dxe6 17. Nxe4 fxe4 18. Qc2 Ra7 19. Bxe4 Qf7 20. Bxh7+ Kh8 21. Bg6 Qf6 22. Qe4 Bc7 23. Qg4 Rd8 24. Qh5+ {1-0 (25) Zwardon,V (2466)-Orgon,D (1989) Kouty nad Desnou 2019}) 11. Bf4 $16 {[%emt 0:09:20] &Bianco is more active.} cxd5 {[%emt 0:19:40]} (11... Bc5 $16) 12. cxd5 $18 {[%emt 0:00:27] White is clearly better.} Nxd5 {[%emt 0:04:20]} 13. Nxd5 {[%emt 0:01:09]} Bxd5 {[%emt 0:00:16]} 14. Bxd5 {[%emt 0:01:36]} exd5 {[%emt 0:00:08]} 15. Rc1 {[%emt 0:00:31]} Nc6 {[%emt 0:07:24]} 16. Qb3 {[%emt 0:01:19][%csl LRb6,LRd5]} Qe8 {[%emt 0:00:49]} 17. Qxd5+ {[%emt 0:05:21]} Qf7 {[%emt 0:00:09]} 18. Qxf7+ {[%emt 0:00:23]} Rxf7 {[%emt 0:00:25]} 19. Nxc6 {[%emt 0:00:10]} dxc6 {[%emt 0:00:06]} 20. Rxc6 {[%emt 0:00:05]} Bc5 {[%emt 0:00:08]} 21. Rd1 {[%emt 0:00:53]} Re8 {[%emt 0:01:42]} 22. e3 {[%emt 0:01:13]} h6 {[%emt 0:00:09]} (22... Rb7 $16 23. Rb1 Be7) 23. Rd5 {[%emt 0:00:58]} g5 {[%emt 0:00:36]} 24. Be5 {[%emt 0:00:12]} ({And not} 24. Rxh6 gxf4 25. gxf4 Re4 $15) 24... Bf8 {[%emt 0:03:39] [#]} (24... Kh7 25. Bd4 Bxd4) 25. Rxb6 {[%emt 0:00:40] White is clearly winning.} a4 {[%emt 0:00:49]} 26. Ra6 {[%emt 0:01:18] Prevents Ra8.} Rfe7 {[%emt 0:00:27]} 27. Bf6 {[%emt 0:00:50]} Rc7 {[%emt 0:00:18]} 28. Rxf5 {[%emt 0:00:25]} Rf7 {[%emt 0:00:40]} 29. g4 {[%emt 0:00:17]} Re4 {[%emt 0:00:14]} 30. h3 {[%emt 0:00:09]} Rc7 {[%emt 0:00:38]} 31. Ra8 {[%emt 0:00:58]} Rc1+ {[%emt 0:00:13]} 32. Kg2 {[%emt 0:00:07]} Rd4 {[%emt 0:01:33] White took control after the opening.  Weighted Error Value: White=0.04 (flawless) /Black=0.39} 1-0

[Event "67th Mexican-ch Open 2022"]
[Site "Chihuahua"]
[Date "2022.04.15"]
[Round "5.9"]
[White "Figueredo Losada, Leonel"]
[Black "Perez Gormaz, Matias"]
[Result "0-1"]
[ECO "B12"]
[WhiteElo "2342"]
[BlackElo "2404"]
[Annotator "TA"]
[PlyCount "64"]
[EventDate "2022.04.12"]
[EventType "swiss"]
[EventCountry "MEX"]
[SourceTitle "playchess.com"]
[Source "ChessBase"]
[SourceQuality "1"]
[TimeControl "5400+30"]

{[%evp 17,64,-8,0,0,0,0,0,-110,0,-14,-29,-81,-90,-77,-82,-89,-94,-83,-41,-77,-43,-181,-126,-145,-145,-212,-204,-199,-217,-227,-228,-226,-214,-210,-85,-88,-86,-91,0,-454,-454,-454,-444,-444,-441,-436,-410,-526,-393]} 1. e4 {[%emt 0:00:30]} c6 {[%emt 0:04:46]} 2. d4 {[%emt 0:08:02]} d5 {[%emt 0:00:07]} 3. e5 {[%emt 0:03:02]} Bf5 {[%emt 0:00:09]} 4. Nc3 {[%emt 0:00:04]} e6 {[%emt 0:00:43]} 5. g4 {[%emt 0:00:03]} Bg6 {[%emt 0:00:08]} 6. Nge2 {[%emt 0:00:15]} c5 {[%emt 0:00:14]} 7. Be3 {[%emt 0:00:04]} Nc6 {[%emt 0:00:41]} 8. dxc5 {[%emt 0:00:03]} Nxe5 {[%emt 0:02:13] 8...h5 is the fancy move.} 9. Nd4 {[%emt 0:00:03]} Nc6 {[%emt 0:05:59]} 10. Bb5 {[%emt 0:02:17] B12: Caro-Kann: Advance Variation.} Rc8 {[%emt 0:00:30]} 11. Qe2 {[%emt 0:04:15]} Nf6 {[%emt 0:14:10]} 12. O-O-O {[%emt 0:03:05]} (12. f4 $11) 12... Be7 {[%emt 0:00:20]} (12... Bxc5 $17 {aiming for ...0-0.} 13. g5 (13. Nxe6 Bxe3+ 14. Qxe3 fxe6 $17) 13... Nd7 14. Bxc6 bxc6) 13. g5 {[%emt 0:25:45]} Nd7 {[%emt 0:02:15]} 14. h4 {[%emt 0:00:05] [#]} (14. Nb3 $11 {keeps the balance.}) 14... Nxd4 $146 {[%emt 0:01:59]} (14... Bxc5 15. h5 Be4 16. Nxe4 dxe4 17. Bxc6 bxc6 18. h6 $16) ({Predecessor:} 14... Bxc5 15. Bxc6 bxc6 16. h5 Bxd4 17. Bxd4 Bf5 18. h6 Qxg5+ 19. Kb1 Qf4 20. Bxg7 Rg8 {0-1 (67) Herrstrom,T (2280)-Vernersson,P (2345) Ronneby 1998}) 15. Bxd4 {[%emt 0:00:10]} O-O {[%emt 0:00:26]} 16. Bxd7 {[%emt 0:23:01]} Qxd7 {[%emt 0:00:08]} 17. Qe3 {[%emt 0:00:41]} Bf5 {[%emt 0:12:11][%cal Ob7b6]} 18. h5 {[%emt 0:04:21]} Qc7 {[%emt 0:02:55][%cal Re7c5]} (18... b6 $5 {[%cal Rb6c5]} 19. cxb6 Rxc3 $1 20. bxc3 (20. Qxc3 $2 Rc8 $19) 20... Qa4 $15) 19. g6 {[%emt 0:02:23]} (19. Rd2 $1 $15) 19... fxg6 {[%emt 0:00:20]} (19... hxg6 20. b4 $11 (20. h6 f6 $17)) (19... h6 $19 {White must now prevent ...Bg5.} 20. gxf7+ Rxf7) 20. hxg6 {[%emt 0:01:08]} hxg6 {[%emt 0:00:41][%cal Re7c5]} 21. Rh8+ {[%emt 0:06:17]} (21. Rd2 $17) 21... Kf7 $19 {[%emt 0:00:05]} 22. Rh7 {[%emt 0:00:02] Strongly threatening Nb5.} Rg8 {[%emt 0:00:15]} 23. Nb5 {[%emt 0:00:05]} Qa5 {[%emt 0:01:23]} 24. Qb3 {[%emt 0:03:41]} a6 {[%emt 0:08:49]} ({Worse is} 24... Bxc5 25. Bxc5 Rxc5 26. Nd6+ Kf6 27. Nxb7 Bxc2 28. Qf3+ (28. Qe3 Qxa2 29. Qf4+ Bf5+ 30. Nxc5 Qa1+ 31. Kd2 Qxb2+ 32. Ke1 Qc3+ 33. Qd2 Qxc5 $17) 28... Bf5+ 29. Nxc5 Qxc5+ 30. Qc3+ Qxc3+ 31. bxc3 $15) 25. Nc3 {[%emt 0:00:08][%cal Oc3d5]} Bxc5 {[%emt 0:00:43] This bishop pair is nice.} (25... g5 $19 26. Rhh1 Bxc5 27. Qxb7+ Rc7) 26. Nxd5 $17 {[%emt 0:05:11]} exd5 {[%emt 0:06:17]} 27. Qxd5+ {[%emt 0:00:04] [#]} Kf8 {[%emt 0:04:50]} ({Better is} 27... Be6 $1 $17 {[%cal Re6d5]} 28. Qe5 {[#]} Qxa2 $1 29. Rxg7+ Rxg7 30. Qxg7+ Ke8 31. Bxc5 Rxc5 32. Qxg6+ Bf7 33. Qe4+ Qe6 34. Qxb7 Bg6) 28. c3 $2 {[%emt 0:03:20][%mdl 8192]} (28. Rdh1 $1 $11 {and White is okay.} Ke7 29. Qe5+ Kd7 30. Qd5+ Ke7 31. Qe5+ Kd7 32. Qd5+ Ke7) 28... Qc7 $19 {[%emt 0:05:03]} 29. Be5 {[%emt 0:06:55]} Qf7 {[%emt 0:01:36]} 30. Bd6+ {[%emt 0:00:00]} Bxd6 {[%emt 0:00:12]} 31. Qxd6+ {[%emt 0:00:00]} Qe7 {[%emt 0:00:09]} 32. Qd5 {[%emt 0:00:00]} Qe4 {[%emt 0:01:21] Weighted Error Value: White=0.58/Black=0.23 (precise)} 0-1

[Event "67th Mexican-ch Open 2022"]
[Site "Chihuahua"]
[Date "2022.04.15"]
[Round "5.10"]
[White "Gonzalez Arroyo, Lenin"]
[Black "Torres Rosas, Luis Carlos"]
[Result "1/2-1/2"]
[ECO "B32"]
[WhiteElo "2210"]
[BlackElo "2356"]
[Annotator "TA"]
[PlyCount "50"]
[EventDate "2022.04.12"]
[EventType "swiss"]
[EventCountry "MEX"]
[SourceTitle "playchess.com"]
[Source "ChessBase"]
[SourceQuality "1"]
[TimeControl "5400+30"]

{[%evp 10,50,29,7,10,0,32,27,24,33,50,36,59,47,40,16,33,32,38,39,49,22,21,22,24,27,33,0,21,11,16,0,0,0,0,4,12,0,86,0,82,-20,-7]} 1. e4 {[%emt 0:00:26]} c5 {[%emt 0:00:36]} 2. Nf3 {[%emt 0:00:22][%cal Bg1f3,Bf3d4,Bd4b5][%mdl 32]} Nc6 {[%emt 0:00:04]} 3. d4 {[%emt 0:02:22]} cxd4 {[%emt 0:00:25]} 4. Nxd4 {[%emt 0:00:09]} e5 {[%emt 0:00:16]} 5. Nb5 {[%emt 0:02:14]} d6 {[%emt 0:00:10]} 6. a4 {[%emt 0:06:37]} a6 {[%emt 0:05:19] B32: Sicilian: Löwenthal and Kalashnikov Variations.} 7. N5c3 {[%emt 0:00:31]} Be7 {[%emt 0:00:46]} 8. Nd5 {[%emt 0:01:24]} Nf6 {[%emt 0:00:09] White has an edge.} 9. Nbc3 {[%emt 0:00:17]} Nxd5 {[%emt 0:04:51]} 10. Nxd5 {[%emt 0:00:19]} O-O {[%emt 0:05:47]} 11. Be3 {[%emt 0:07:08]} Be6 {[%emt 0:01:16] [#]} 12. Be2 $146 {[%emt 0:02:20]} ({Predecessor:} 12. c3 f5 13. exf5 Bxf5 14. Bc4 Kh8 15. O-O Bg5 16. Qd2 Bxe3 17. Nxe3 Na5 18. Ba2 {0-1 (28) Bodrova,N (1908)-Stakh,A Ilichevsk 2007}) 12... Bg5 {[%emt 0:01:21]} 13. Bb6 {[%emt 0:02:40]} Qd7 {[%emt 0:00:39]} 14. O-O {[%emt 0:00:18]} Rac8 {[%emt 0:11:24] Prevents Nc7.} 15. Ra3 {[%emt 0:08:15]} Bxd5 {[%emt 0:13:04]} 16. exd5 {[%emt 0:00:26]} ({Of course not} 16. Qxd5 Nb4 17. Qb3 Nxc2 $15) 16... Ne7 {[%emt 0:00:09][%cal Bc6e7,Be7g6,Bg6e5][%mdl 32]} 17. c4 {[%emt 0:04:38]} Ng6 {[%emt 0:06:42]} 18. Be3 {[%emt 0:03:46]} Bxe3 {[%emt 0:15:12]} 19. fxe3 {[%emt 0:00:21]} f5 {[%emt 0:00:18]} 20. Rb3 {[%emt 0:07:26]} e4 {[%emt 0:00:30]} 21. Qd4 {[%emt 0:00:30]} Ne5 {[%emt 0:00:30]} 22. a5 {[%emt 0:00:30]} Qc7 {[%emt 0:00:30]} 23. Rb6 {[%emt 0:00:30]} Rfd8 {[%emt 0:00:30]} (23... Nd7 $11 24. Rb3 g6) 24. h3 {[%emt 0:00:30]} (24. Rxf5 $16 Nd7 25. b4 (25. Qxe4 Re8 $15)) 24... Rd7 {[%emt 0:00:30]} (24... g6 $11) 25. Rb3 {[%emt 0:00:30]} (25. b4 $16) 25... Qxa5 {[%emt 0:00:30] Weighted Error Value: White=0.25 (precise) /Black=0.22 (precise)} 1/2-1/2

[Event "67th Mexican-ch Open 2022"]
[Site "Chihuahua"]
[Date "2022.04.15"]
[Round "5.11"]
[White "Fernandez Hernandez, Arturo A."]
[Black "Lopez Raygoza, Luis Alberto"]
[Result "1-0"]
[ECO "A17"]
[WhiteElo "2376"]
[BlackElo "2207"]
[Annotator "TA"]
[PlyCount "103"]
[EventDate "2022.04.12"]
[EventType "swiss"]
[EventCountry "MEX"]
[SourceTitle "playchess.com"]
[Source "ChessBase"]
[SourceQuality "1"]
[TimeControl "5400+30"]

{[%evp 9,103,0,8,6,5,0,36,-26,0,-1,0,-9,15,-25,-4,-27,0,-43,-47,-111,-116,-122,-87,-101,-121,-106,-114,-89,-105,-116,-86,-149,-149,-283,-262,-318,-315,-314,-310,-313,-293,-288,0,0,158,150,161,153,189,172,223,231,206,222,229,212,247,233,200,59,59,59,134,0,0,0,89,89,275,278,309,307,439,405,444,444,537,531,12831,12827,5469,7698,3595,2914,29984,12837,12839,12839,29989,29976,29976,29974,29975,12842,12842,12839]} 1. Nf3 {[%emt 0:00:17]} Nf6 {[%emt 0:00:06]} 2. c4 {[%emt 0:00:16]} e6 {[%emt 0:00:33]} 3. e3 {[%emt 0:00:54]} d5 {[%emt 0:01:09]} 4. Nc3 {[%emt 0:00:39]} Bd6 {[%emt 0:03:31]} 5. d4 {[%emt 0:02:58]} O-O {[%emt 0:01:48]} 6. Bd3 {[%emt 0:02:44] A17: English Opening: 1...Nf6 with ...Bb4.} dxc4 {[%emt 0:01:14]} 7. Bxc4 {[%emt 0:00:02]} a6 {[%emt 0:00:05]} 8. a4 {[%emt 0:01:03]} (8. e4 $14 Be7 9. Bb3) 8... c5 {[%emt 0:01:07]} 9. O-O {[%emt 0:03:14]} Nc6 {[%emt 0:04:11]} 10. Qe2 {[%emt 0:02:51] [#]} Qe7 $146 {[%emt 0:00:22]} ({Predecessor:} 10... Qc7 11. Rd1 Rd8 12. h3 h6 13. d5 exd5 14. Nxd5 Nxd5 15. Bxd5 Nb4 16. Bc4 Bf5 {½-½ (76) Rambaldi,F (2556)-Christiansen,J (2504) Porto Mannu 2018}) 11. Rd1 {[%emt 0:01:48]} b6 {[%emt 0:05:27]} 12. dxc5 {[%emt 0:08:15]} Bxc5 {[%emt 0:00:34]} 13. e4 {[%emt 0:02:09]} Ng4 {[%emt 0:02:33]} 14. Bg5 {[%emt 0:05:08]} (14. Rf1 $1 $15) 14... Qc7 $17 {[%emt 0:00:28]} 15. Bh4 {[%emt 0:02:48] [#]} Nd4 $1 {[%emt 0:06:09][%mdl 512]} 16. Rxd4 {[%emt 0:00:09]} Bxd4 {[%emt 0:00:02]} 17. Bg3 {[%emt 0:00:09]} Be5 {[%emt 0:00:02]} 18. Nxe5 {[%emt 0:00:55]} Nxe5 {[%emt 0:00:02][%cal Bg4e5,Be5c6,Bc6d4][%mdl 32]} 19. Bb3 {[%emt 0:00:26]} Qc5 {[%emt 0:02:10]} 20. Rd1 {[%emt 0:12:53]} (20. Rc1 $142) 20... Bb7 {[%emt 0:08:45]} 21. Nd5 {[%emt 0:02:11]} (21. Qh5 $17 {was worth a try.} Nd3 22. Qe2) 21... Nc6 $19 {[%emt 0:11:56]} (21... exd5 22. Bxe5 Rfe8 23. Bd4 $17) 22. Bd6 {[%emt 0:13:58] [#]} Nd4 $1 {[%emt 0:00:19][%mdl 512]} 23. Nf6+ {[%emt 0:17:55]} Kh8 {[%emt 0:10:22]} 24. Qe3 {[%emt 0:03:19]} Qxd6 {[%emt 0:00:27]} 25. Rxd4 {[%emt 0:00:29]} Qc6 {[%emt 0:00:52]} (25... Qe7 $19 26. Ng4 Rfd8) 26. Rc4 $40 {[%emt 0:00:36][%mdl 128] Black needs to defend precisely.} Qxc4 {[%emt 0:09:22]} 27. Bxc4 $16 {[%emt 0:00:12]} gxf6 {[%emt 0:00:02]} 28. Qxb6 {[%emt 0:02:59]} Rab8 {[%emt 0:03:18][%cal Ob7d5]} 29. Qd4 {[%emt 0:00:44] Prevents Bd5.} (29. Bxa6 Bxa6 30. Qxa6 Rxb2 $11) 29... Kg7 {[%emt 0:01:29]} (29... e5 $142 30. Qe3 Rbd8) 30. e5 $18 {[%emt 0:03:39]} f5 {[%emt 0:00:58]} 31. Qh4 {[%emt 0:00:50] Strongly threatening Qf6+.} h6 {[%emt 0:00:10]} 32. f3 {[%emt 0:02:35]} Kh7 {[%emt 0:08:24]} 33. Qe7 {[%emt 0:00:51] Hoping for Bxe6.} Kg8 {[%emt 0:00:57]} 34. Kf2 {[%emt 0:01:36]} (34. Qf6 $18) 34... Bd5 $14 {[%emt 0:04:32]} 35. Bxd5 $1 {[%emt 0:00:31]} (35. Bxa6 Rxb2+ 36. Kg3 Kg7 $11) 35... Rxb2+ {[%emt 0:00:01]} ({Black should try} 35... Rfe8 $1 $14 36. Qf6 exd5) 36. Ke3 {[%emt 0:00:12]} ({White has to play} 36. Kg3 $16 exd5 37. Qf6) 36... exd5 $11 {[%emt 0:00:10][%mdl 4096] Endgame KQ-KRR} 37. g3 {[%emt 0:00:03]} Rb6 {[%emt 0:07:34]} (37... Rxh2 38. Kf4 $14) (37... Rb3+ $11 38. Kf4 Rfb8) 38. Kf4 $16 {[%emt 0:01:41]} d4 $2 {[%emt 0:03:01] [#] This costs Black the game.} (38... Rc8 $16) 39. Qd7 $1 $18 {[%emt 0:00:49]} (39. Kxf5 $6 Rfb8 40. Qd7 Rg6 41. Qxd4 Rc8 $18) 39... Kg7 {[%emt 0:04:22]} 40. Kxf5 {[%emt 0:00:17]} ({Don't do} 40. Qxd4 $6 Rfb8 41. Kxf5 (41. e6+ Kg6 $11) 41... Rb4 $18) 40... Re6 {[%emt 0:00:20]} (40... Rfb8 $142 41. f4 (41. Qxd4 Rb4 $18) 41... Kg8 42. Qxd4 Rc6) 41. Qxd4 {[%emt 0:00:21]} Rc8 {[%emt 0:00:24]} 42. f4 {[%emt 0:01:01]} Rc2 {[%emt 0:00:43]} 43. Kg4 {[%emt 0:00:10] And now f5 would win.} Re2 {[%emt 0:01:19]} 44. Kf3 {[%emt 0:00:07]} Re1 {[%emt 0:00:22]} 45. Qc3 {[%emt 0:00:06]} Rb1 {[%emt 0:00:46]} 46. f5 {[%emt 0:00:34] White wants to mate with f6+.} Reb6 {[%emt 0:00:00]} 47. e6+ {[%emt 0:00:15]} (47. f6+ $142 Kh7 48. Qc2+ Kh8 49. Qc8+ Kh7 50. Qf5+ Kh8 51. Qg4 Rf1+ 52. Kg2) 47... Kh7 {[%emt 0:00:25]} 48. Qf6 {[%emt 0:01:19]} R1b3+ {[%emt 0:00:53]} 49. Kg2 {[%emt 0:00:13]} fxe6 {[%emt 0:00:24]} 50. Qg6+ {[%emt 0:00:18]} Kh8 {[%emt 0:00:01]} 51. f6 {[%emt 0:00:20]} (51. Qe8+ $142 Kg7 52. Qe7+ Kh8 53. f6 Rb7 {[#]} 54. f7 $1 {[%mdl 512]} Rb8 55. f8=Q+ Rxf8 56. Qxf8+ Kh7 57. Qf7+ Kh8 58. Qxe6 Rb2+ 59. Kh3) 51... Rb7 {[%emt 0:00:36]} 52. f7 {[%emt 0:00:07] Weighted Error Value: White=0.26 (precise) /Black=0.71} 1-0